bitfinex/quotes_BTCUSD_20220307
["timestamp","ask_amount","ask_price","bid_price","bid_amount"]
[1646690581339,0.21597399,37902.0,37898.0,0.21499484]
[1646690581543,0.065975,37901.0,37898.0,0.11499484]
[1646690581741,0.0534758,37899.0,37898.0,0.21499484]
[1646690581944,0.11944933,37899.0,37898.0,0.21499484]
[1646690582184,0.11944933,37899.0,37898.0,0.26499484]
[1646690582989,0.11944933,37899.0,37898.0,0.05]
[1646690583188,0.20347579,37899.0,37898.0,0.05]
[1646690583588,0.20347579,37899.0,37894.0,0.131949]
[1646690583787,0.15865951,37895.0,37894.0,0.131949]
[1646690584188,0.15865951,37895.0,37894.0,0.231949]
[1646690584385,0.02652,37897.0,37894.0,0.1]
[1646690584386,0.13196263,37896.0,37894.0,0.1]
[1646690584586,0.13196263,37896.0,37894.0,0.15]
[1646690584786,0.0534758,37895.0,37894.0,0.15]
[1646690585190,2.10703438,37917.0,37894.0,1.37521078]
[1646690585191,0.0534758,37899.0,37894.0,1.37521078]
[1646690585387,0.0534758,37899.0,37894.0,1.40021078]
[1646690586236,0.0534758,37899.0,37898.0,0.131929]
[1646690586433,0.0534758,37899.0,37898.0,0.05]
[1646690586633,0.20347579,37899.0,37898.0,0.1]
[1646690586839,0.20347579,37899.0,37898.0,0.05]
[1646690587233,0.20347579,37899.0,37896.0,0.131941]
[1646690587634,0.20347579,37899.0,37896.0,0.231941]
[1646690588334,0.20347579,37899.0,37897.0,0.065969]
[1646690589797,0.26944867,37899.0,37897.0,0.065969]
[1646690589997,0.26944867,37899.0,37896.0,0.231941]
[1646690590997,0.33542867,37899.0,37896.0,0.231941]
[1646690591197,0.18542868,37899.0,37896.0,0.331941]
[1646690591396,0.14999999,37898.0,37896.0,0.591941]
[1646690593199,0.14999999,37898.0,37896.0,0.541941]
[1646690595242,0.14999999,37898.0,37896.0,0.591941]
[1646690597484,0.14999999,37898.0,37896.0,0.41]
[1646690597687,0.11944868,37899.0,37898.0,0.75513999]
[1646690597885,0.26444867,37899.0,37898.0,0.75513999]
[1646690598085,0.26444867,37899.0,37898.0,0.80513999]
[1646690598685,0.29096867,37899.0,37898.0,0.80513999]
[1646690600588,0.26444867,37899.0,37898.0,0.80513999]
[1646690605683,0.26374567,37899.0,37898.0,0.80513999]
[1646690607485,0.19847579,37899.0,37898.0,0.80513999]
[1646690607689,0.0534758,37899.0,37898.0,0.80513999]
[1646690607987,0.0534758,37899.0,37898.0,0.90513999]
[1646690610138,0.19847579,37899.0,37898.0,0.90513999]
[1646690611942,0.0534758,37899.0,37898.0,0.90513999]
[1646690612196,0.4459,37905.0,37900.0,0.04398961]
[1646690612395,0.4459,37905.0,37901.0,0.0527]
[1646690612693,0.7940758,37911.0,37903.0,0.21446846]
[1646690612897,0.0534758,37911.0,37904.0,0.26716846]
[1646690613295,0.227,37914.0,37904.0,0.26716846]
[1646690613296,0.227,37914.0,37909.0,0.5]
[1646690613496,0.4459,37916.0,37910.0,0.0527]
[1646690613697,0.2379,37920.0,37914.0,1.6]
[1646690613895,0.2121802,37926.0,37918.0,0.8088]
[1646690614094,0.2121802,37926.0,37920.0,0.8088]
[1646690614095,0.20551089,37926.0,37920.0,0.8088]
[1646690614297,0.00647209,37929.0,37925.0,0.07204676]
[1646690614495,0.00647209,37929.0,37926.0,0.118613]
[1646690614696,0.00647209,37929.0,37926.0,0.218613]
[1646690615931,0.00647209,37929.0,37926.0,1.077413]
[1646690616134,0.00647209,37929.0,37926.0,0.318613]
[1646690616332,0.00647209,37929.0,37927.0,0.24]
[1646690616535,0.00647209,37929.0,37928.0,0.0527]
[1646690617134,0.00647209,37929.0,37928.0,1.30344878]
[1646690617337,0.0011,37933.0,37929.0,2.43532]
[1646690617536,0.0011,37933.0,37931.0,0.83532]
[1646690617735,0.0011,37933.0,37932.0,1.40344878]
[1646690617934,0.0011,37936.0,37933.0,0.02652]
[1646690618137,0.0011,37936.0,37935.0,0.8088]
[1646690618334,0.0033,37938.0,37936.0,2.4088]
[1646690618534,0.0033,37938.0,37936.0,2.4615]
[1646690618734,0.0033,37938.0,37936.0,2.5615]
[1646690618936,0.2367,37949.0,37938.0,0.8088]
[1646690619134,0.2367,37949.0,37939.0,0.46812878]
[1646690619336,0.0011,37950.0,37940.0,0.990574]
[1646690619536,0.0011,37950.0,37943.0,0.89595722]
[1646690619797,0.0011,37950.0,37945.0,0.83532]
[1646690619996,0.4181,37955.0,37948.0,1.6]
[1646690620192,0.0011,37956.0,37949.0,1.31660878]
[1646690620392,0.0011,37956.0,37951.0,0.89209361]
[1646690620592,0.0011,37961.0,37960.0,0.8088]
[1646690620796,0.0011,37961.0,37960.0,0.2527]
[1646690620991,0.0011,37961.0,37960.0,0.318557]
[1646690621596,0.0011,37961.0,37960.0,0.2527]
[1646690621993,0.0011,37961.0,37960.0,0.1527]
[1646690622193,0.0011,37961.0,37960.0,0.0527]
[1646690622592,0.28012341,37955.0,37954.0,0.0527]
[1646690622795,0.8751234,37955.0,37954.0,0.0527]
[1646690623451,0.14499999,37955.0,37954.0,0.0527]
[1646690624546,0.45,37958.0,37954.0,0.0527]
[1646690624547,0.00015954,37956.0,37954.0,0.0527]
[1646690624745,0.00015954,37956.0,37955.0,0.41542878]
[1646690624947,0.00015954,37956.0,37955.0,0.0527]
[1646690625145,0.00015954,37956.0,37955.0,0.1527]
[1646690625344,0.0011,37961.0,37955.0,0.2027]
[1646690625547,0.14499999,37958.0,37955.0,0.2027]
[1646690625744,0.00015954,37957.0,37956.0,0.1]
[1646690626147,0.00015954,37957.0,37956.0,0.15]
[1646690626548,3.07832948,37967.0,37956.0,0.15]
[1646690626747,0.32901529,37966.0,37958.0,0.065873]
[1646690626947,0.2,37962.0,37958.0,0.065873]
[1646690627884,0.9452047,37961.0,37958.0,0.065873]
[1646690628086,0.2,37962.0,37958.0,0.065873]
[1646690628284,0.9202047,37960.0,37958.0,0.065873]
[1646690628489,0.19395473,37959.0,37958.0,0.065873]
[1646690628785,0.66259043,37959.0,37958.0,0.065873]
[1646690629085,0.4686357,37959.0,37958.0,0.065873]
[1646690629283,0.2686357,37959.0,37957.0,0.181743]
[1646690629483,0.00011103,37965.0,37957.0,0.181743]
[1646690629684,0.00011103,37965.0,37957.0,0.281743]
[1646690629685,0.2,37963.0,37957.0,0.281743]
[1646690629886,0.00011103,37965.0,37958.0,0.41302042]
[1646690630087,0.00011103,37965.0,37959.0,0.8088]
[1646690630290,0.0011,37971.0,37963.0,0.9588]
[1646690630489,0.0011,37971.0,37966.0,0.15]
[1646690630683,0.2255,37977.0,37964.0,0.927338]
[1646690630684,0.00044403,37974.0,37967.0,0.0527]
[1646690630939,0.00044403,37974.0,37965.0,2.4588]
[1646690630940,0.00044403,37974.0,37968.0,0.0527]
[1646690631138,0.00044403,37974.0,37971.0,0.06725676]
[1646690631345,0.5250717,37980.0,37976.0,0.065831]
[1646690631738,0.5250717,37980.0,37977.0,0.15]
[1646690631936,0.5250717,37980.0,37976.0,0.065831]
[1646690632136,0.5250717,37980.0,37977.0,0.1]
[1646690632437,0.6427,37984.0,37977.0,0.1]
[1646690632638,0.43822544,37985.0,37979.0,0.065828]
[1646690632639,0.2,37983.0,37979.0,0.065828]
[1646690633341,0.2,37980.0,37976.0,0.1]
[1646690633536,0.26474544,37985.0,37976.0,0.1]
[1646690633739,0.2,37977.0,37976.0,0.1]
[1646690633937,0.2,37977.0,37975.0,0.165841]
[1646690634139,0.2,37983.0,37975.0,0.165841]
[1646690634787,0.2,37980.0,37975.0,0.165841]
[1646690634982,0.28095504,37983.0,37978.0,0.065828]
[1646690635984,0.00016756,37981.0,37978.0,0.065828]
[1646690636184,0.19804167,37985.0,37978.0,0.065828]
[1646690636986,0.67,37986.0,37978.0,0.065828]
[1646690637185,0.19804167,37985.0,37978.0,0.065828]
[1646690637988,0.19304167,37985.0,37978.0,0.115828]
[1646690638186,0.19304167,37985.0,37981.0,0.065818]
[1646690638435,0.0011,37988.0,37987.0,0.45612098]
[1646690638639,0.0011,37995.0,37987.0,1.94643292]
[1646690638839,0.0011,37995.0,37992.0,0.15]
[1646690639040,0.0011,37995.0,37993.0,0.46760194]
[1646690639234,0.6529,38000.0,37994.0,0.1]
[1646690639235,0.0033,38000.0,37994.0,0.1]
[1646690639434,0.0033,38000.0,37995.0,0.15]
[1646690639938,0.0033,38000.0,37996.0,0.0527]
[1646690640235,0.0033,38000.0,37998.0,0.05]
[1646690640634,0.0033,38000.0,37998.0,0.1]
[1646690640834,0.0033,38000.0,37997.0,0.25]
[1646690641035,0.0033,38000.0,37998.0,0.325791]
[1646690641239,0.0033,38000.0,37998.0,0.26]
[1646690641240,0.19304167,37999.0,37998.0,0.26]
[1646690641535,0.19315486,37999.0,37998.0,0.26]
[1646690641739,0.36910481,37999.0,37998.0,0.26]
[1646690641936,1.6,37998.0,37988.0,0.13815]
[1646690642191,0.19304167,37992.0,37988.0,0.13815]
[1646690642390,0.30376448,37993.0,37988.0,0.125]
[1646690642591,0.49680615,37993.0,37990.0,0.06582]
[1646690642793,0.19304167,37991.0,37990.0,0.06582]
[1646690642989,0.40275872,37991.0,37990.0,0.06582]
[1646690643388,0.13504147,37993.0,37990.0,0.06582]
[1646690643894,0.41287292,37992.0,37990.0,0.06582]
[1646690644094,0.1647141,37991.0,37986.0,0.131642]
[1646690644298,1.62652,37989.0,37983.0,0.77614997]
[1646690644491,1.62652,37989.0,37969.0,0.1]
[1646690644492,1.6,37987.0,37969.0,0.1]
[1646690644692,0.02652,37981.0,37970.0,1.0]
[1646690644894,0.02652,37979.0,37968.0,0.00016863]
[1646690645093,0.02152,37977.0,37968.0,0.00016863]
[1646690645290,0.20610823,37972.0,37968.0,0.00016863]
[1646690645690,0.06585489,37971.0,37968.0,0.00016863]
[1646690645942,0.56610192,37977.0,37968.0,0.00016863]
[1646690645943,0.54458192,37977.0,37968.0,0.00016863]
[1646690646141,0.131709,37977.0,37968.0,0.00016863]
[1646690646340,0.41543519,37977.0,37968.0,0.00016863]
[1646690646540,0.41543519,37977.0,37968.0,0.00033726]
[1646690646741,0.20540904,37975.0,37968.0,0.00033726]
[1646690647343,0.06585078,37974.0,37968.0,0.05033726]
[1646690648442,0.06585078,37974.0,37968.0,0.00016863]
[1646690648443,0.31981087,37971.0,37968.0,0.00016863]
[1646690648646,0.60977633,37971.0,37961.0,0.0999]
[1646690648842,0.51739487,37971.0,37963.0,0.007]
[1646690649043,0.54391487,37971.0,37963.0,0.007]
[1646690649443,0.18642123,37966.0,37963.0,0.007]
[1646690649690,0.25228123,37966.0,37963.0,0.007]
[1646690650089,0.25228123,37966.0,37961.0,0.231608]
[1646690650288,0.25228123,37966.0,37961.0,0.331608]
[1646690650488,0.25228123,37966.0,37961.0,0.1999]
[1646690650688,0.25228123,37966.0,37961.0,0.265761]
[1646690650891,0.25228123,37966.0,37961.0,0.1999]
[1646690651090,0.25228123,37966.0,37961.0,0.4599]
[1646690651293,0.25228123,37966.0,37962.0,0.1]
[1646690651495,0.06586,37966.0,37962.0,0.1]
[1646690651694,0.13170851,37971.0,37963.0,0.55044674]
[1646690651893,0.13170851,37971.0,37963.0,0.181706]
[1646690652091,0.13170851,37971.0,37964.0,0.1]
[1646690652297,0.26341102,37975.0,37964.0,0.41874074]
[1646690652493,0.26341102,37975.0,37963.0,0.231706]
[1646690652494,0.2073444,37972.0,37963.0,0.231706]
[1646690652692,0.065857,37971.0,37965.0,0.065852]
[1646690652896,0.13171333,37971.0,37965.0,0.065852]
[1646690653093,0.26343397,37971.0,37963.0,0.05]
[1646690653293,0.28995397,37971.0,37962.0,0.2]
[1646690653537,0.20615193,37964.0,37962.0,0.2]
[1646690653739,0.19581223,37966.0,37965.0,0.11835571]
[1646690654038,0.06586226,37967.0,37965.0,0.16835571]
[1646690654236,0.065858,37969.0,37965.0,0.21835571]
[1646690654440,0.065849,37975.0,37965.0,0.21835571]
[1646690654641,0.50840509,37976.0,37965.0,0.21835571]
[1646690654642,0.245,37976.0,37968.0,0.065848]
[1646690654844,0.7659,37984.0,37972.0,0.15]
[1646690654845,0.2448,37983.0,37972.0,0.15]
[1646690655142,0.7659,37984.0,37972.0,0.25]
[1646690655339,0.2394751,37979.0,37972.0,0.1]
[1646690655539,0.3318381,37979.0,37972.0,0.1]
[1646690655741,0.3318381,37979.0,37972.0,0.05]
[1646690655942,0.06584347,37978.0,37972.0,0.05]
[1646690656140,0.06584347,37978.0,37970.0,0.15]
[1646690656141,0.06584347,37978.0,37970.0,0.2]
[1646690656342,0.13169447,37978.0,37970.0,0.2]
[1646690656541,0.13169447,37978.0,37970.0,0.1]
[1646690656742,0.13169447,37978.0,37968.0,0.05]
[1646690657194,0.13169447,37978.0,37968.0,0.46870862]
[1646690657398,0.13169447,37978.0,37970.0,0.07199071]
[1646690657600,1.0107,37984.0,37972.0,0.165746]
[1646690657795,1.0107,37984.0,37975.0,0.131644]
[1646690657997,0.5383,37984.0,37975.0,0.131644]
[1646690658197,0.02652,37987.0,37975.0,0.231644]
[1646690658395,1.26330937,37990.0,37975.0,0.231644]
[1646690658396,0.32595037,37982.0,37975.0,0.231644]
[1646690658596,0.06583043,37984.0,37975.0,0.231644]
[1646690659399,0.760431,37985.0,37977.0,0.15]
[1646690659400,0.6946,37985.0,37977.0,0.15]
[1646690659599,0.6946,37985.0,37978.0,0.131644]
[1646690659798,0.0658256,37987.0,37978.0,0.331644]
[1646690660400,0.1974946,37987.0,37978.0,0.331644]
[1646690660699,0.2726808,37985.0,37979.0,0.065822]
[1646690660969,0.3385128,37985.0,37979.0,0.065822]
[1646690661172,0.3385128,37985.0,37979.0,0.36]
[1646690661467,0.065835,37986.0,37980.0,0.41870862]
[1646690661766,0.065835,37986.0,37981.0,0.115834]
[1646690662266,0.065835,37986.0,37981.0,0.05]
[1646690662466,0.31593876,37985.0,37981.0,0.05]
[1646690664368,0.2257,37990.0,37982.0,0.48453462]
[1646690664570,0.2257,37990.0,37982.0,0.065826]
[1646690664788,0.63951771,37992.0,37984.0,0.181637]
[1646690664994,0.63951771,37992.0,37984.0,0.231637]
[1646690665194,0.21215539,37991.0,37984.0,0.231637]
[1646690665493,0.31909935,37987.0,37984.0,0.231637]
[1646690665689,0.31909935,37987.0,37985.0,0.065819]
[1646690667694,0.00016858,37988.0,37985.0,0.065819]
[1646690667895,0.00016858,37988.0,37986.0,0.41870862]
[1646690668096,1.6904,37999.0,37988.0,0.00036419]
[1646690668097,0.18703135,37995.0,37988.0,0.00036419]
[1646690668437,0.00067422,37994.0,37990.0,0.065816]
[1646690668835,0.29203661,37993.0,37990.0,0.065816]
[1646690670239,0.35785761,37993.0,37990.0,0.065816]
[1646690670637,0.3580259,37993.0,37990.0,0.065816]
[1646690671440,0.3580259,37993.0,37988.0,0.18199619]
[1646690671441,0.55549541,37993.0,37988.0,0.18199619]
[1646690671639,0.55532712,37993.0,37988.0,0.18199619]
[1646690671839,0.55549541,37993.0,37988.0,0.18199619]
[1646690672891,0.55532712,37993.0,37988.0,0.18199619]
[1646690673087,0.00016829,37992.0,37988.0,0.18199619]
[1646690673285,0.18149548,37994.0,37988.0,0.18199619]
[1646690673486,0.30485747,37990.0,37988.0,0.18199619]
[1646690673685,0.30485747,37990.0,37985.0,0.131645]
[1646690673686,1.6,37989.0,37985.0,0.131645]
[1646690673890,1.75818406,37989.0,37983.0,0.005]
[1646690674090,1.75818406,37989.0,37982.0,0.0013]
[1646690674688,0.21449019,37988.0,37982.0,0.0013]
[1646690674886,0.34052043,37988.0,37982.0,0.0001]
[1646690675095,0.02652,37987.0,37979.0,0.26]
[1646690675288,1.66585436,37986.0,37972.0,0.131692]
[1646690675593,1.66585436,37986.0,37965.0,0.11835571]
[1646690675594,0.06586,37976.0,37965.0,0.11835571]
[1646690675789,0.02652,37975.0,37965.0,0.11835571]
[1646690676045,0.20745336,37968.0,37965.0,0.11835571]
[1646690676443,0.20745336,37968.0,37965.0,0.25006871]
[1646690677245,0.27331636,37968.0,37965.0,0.25006871]
[1646690677643,0.065863,37968.0,37965.0,0.25006871]
[1646690677846,0.065851,37975.0,37965.0,0.25023692]
[1646690678443,0.06585431,37973.0,37965.0,0.25023692]
[1646690678643,0.21863667,37971.0,37965.0,0.25023692]
[1646690678843,0.21863667,37971.0,37965.0,0.25006871]
[1646690679044,0.21863667,37971.0,37967.0,0.0001682]
[1646690679244,0.21863667,37971.0,37968.0,0.06585]
[1646690679683,0.065851,37974.0,37968.0,0.06585]
[1646690680285,0.065851,37974.0,37968.0,0.0660182]
[1646690681087,0.065851,37974.0,37968.0,0.3260182]
[1646690681291,0.19754668,37976.0,37968.0,0.32585]
[1646690681489,0.613453,37981.0,37969.0,0.0001682]
[1646690681490,0.01315,37979.0,37969.0,0.0001682]
[1646690681690,0.2313,37981.0,37972.0,0.065839]
[1646690681890,0.0527,37982.0,37972.0,0.065839]
[1646690682090,0.1782347,37980.0,37972.0,0.065839]
[1646690682287,0.24598722,37980.0,37972.0,0.065839]
[1646690682688,0.24598722,37980.0,37973.0,0.00016202]
[1646690683095,0.1782347,37980.0,37975.0,0.065841]
[1646690683289,0.06584,37981.0,37975.0,0.065841]
[1646690684239,0.065839,37980.0,37975.0,0.065841]
[1646690684443,0.06584617,37979.0,37975.0,0.065841]
[1646690684640,0.13169217,37979.0,37975.0,0.065841]
[1646690684841,0.13169217,37979.0,37970.0,0.131697]
[1646690684842,0.15821217,37979.0,37970.0,0.131697]
[1646690685042,0.092366,37979.0,37973.0,0.00016202]
[1646690685242,0.31013753,37974.0,37973.0,0.00016202]
[1646690686053,0.33665753,37974.0,37968.0,0.47401926]
[1646690686543,0.33665753,37974.0,37968.0,0.26]
[1646690687223,0.20396174,37969.0,37968.0,0.26]
[1646690687622,0.13172794,37970.0,37968.0,0.26]
[1646690688222,0.131727,37972.0,37971.0,0.38535437]
[1646690688423,0.243,37979.0,37971.0,0.38535437]
[1646690688625,0.243,37979.0,37972.0,0.131689]
[1646690688626,0.17574995,37979.0,37972.0,0.131689]
[1646690688823,0.01315,37982.0,37972.0,0.281689]
[1646690689022,0.5308,37984.0,37972.0,0.9018954]
[1646690689220,0.5308,37984.0,37973.0,0.21401926]
[1646690689423,0.02652,37983.0,37974.0,0.065845]
[1646690689825,0.16017749,37982.0,37974.0,0.27986426]
[1646690690223,0.02652,37981.0,37974.0,0.27986426]
[1646690690422,0.16017749,37982.0,37974.0,0.27986426]
[1646690690623,0.18669749,37982.0,37974.0,0.27986426]
[1646690691043,0.19751616,37983.0,37974.0,0.27986426]
[1646690691542,0.30410014,37979.0,37974.0,0.27986426]
[1646690691742,0.30410014,37979.0,37975.0,0.21401926]
[1646690692343,0.02652,37981.0,37975.0,0.21401926]
[1646690692543,0.15821,37983.0,37976.0,0.131677]
[1646690693343,0.31285379,37982.0,37976.0,0.131677]
[1646690693544,0.131695,37981.0,37976.0,0.131677]
[1646690693744,0.065843,37979.0,37976.0,0.131677]
[1646690694344,0.13169,37983.0,37976.0,0.131677]
[1646690694791,0.13167211,37984.0,37976.0,0.34569626]
[1646690695191,0.13167211,37984.0,37977.0,0.21401926]
[1646690696192,0.065836,37984.0,37978.0,0.065833]
[1646690696792,0.19752557,37984.0,37977.0,0.21401926]
[1646690696993,0.131693,37983.0,37977.0,0.21401926]
[1646690697393,0.131693,37983.0,37976.0,0.34569626]
[1646690697593,0.26337237,37983.0,37976.0,0.34569626]
[1646690699245,0.092356,37984.0,37977.0,0.21401926]
[1646690700044,0.092356,37984.0,37976.0,0.34569626]
[1646690700244,0.1582085,37984.0,37978.0,0.065841]
[1646690700443,0.06583935,37983.0,37978.0,0.065841]
[1646690700646,0.06583935,37983.0,37976.0,0.21401926]
[1646690700846,0.23692811,37980.0,37976.0,0.21401926]
[1646690701445,0.174038,37979.0,37976.0,0.21401926]
[1646690701647,0.239893,37979.0,37975.0,0.21401926]
[1646690701952,0.065855,37979.0,37975.0,0.21401926]
[1646690702192,0.065855,37979.0,37974.0,0.21401926]
[1646690703390,0.32178311,37978.0,37974.0,0.21401926]
[1646690703790,0.32178311,37978.0,37977.0,0.60679833]
[1646690703992,0.13170039,37981.0,37977.0,0.60679833]
[1646690703993,0.065855,37979.0,37977.0,0.60679833]
[1646690705191,0.31740857,37979.0,37977.0,0.60679833]
[1646690705490,0.31740857,37979.0,37977.0,0.67264233]
[1646690708146,0.1975602,37980.0,37979.0,0.39717216]
[1646690708346,0.51334613,37980.0,37979.0,0.39717216]
[1646690713555,0.61604613,37980.0,37979.0,0.39717216]
[1646690714255,0.56604613,37980.0,37979.0,0.39717216]
[1646690715356,0.065867,37977.0,37973.0,0.00015299]
[1646690715556,0.131756,37975.0,37973.0,0.00015299]
[1646690715758,0.0527,37974.0,37973.0,0.00015299]
[1646690715955,1.6,37973.0,37970.0,0.00024236]
[1646690716155,0.66663306,37972.0,37970.0,0.00024236]
[1646690716355,0.39803224,37971.0,37970.0,0.00024236]
[1646690716555,0.39803224,37971.0,37969.0,0.21401926]
[1646690716556,1.6,37970.0,37968.0,0.47401926]
[1646690716756,0.45073224,37969.0,37968.0,0.26]
[1646690716956,1.6,37968.0,37964.0,0.26660101]
[1646690717191,1.6,37968.0,37965.0,0.26660101]
[1646690717790,1.6,37968.0,37963.0,0.004]
[1646690717791,0.27341412,37966.0,37964.0,0.26660101]
[1646690717991,0.23524831,37965.0,37964.0,0.26660101]
[1646690718593,0.35426166,37967.0,37964.0,0.26660101]
[1646690718792,0.184448,37967.0,37964.0,0.26660101]
[1646690718992,0.250326,37967.0,37964.0,0.26660101]
[1646690719192,0.13174713,37966.0,37964.0,0.26660101]
[1646690719393,0.13174713,37966.0,37963.0,0.32008902]
[1646690719593,0.19761713,37966.0,37965.0,0.26770414]
[1646690719794,0.06587,37966.0,37965.0,0.26770414]
[1646690720397,0.06587,37966.0,37964.0,0.43578821]
[1646690720695,0.06587,37966.0,37965.0,0.31992121]
[1646690721758,0.06587,37966.0,37965.0,0.30992121]
[1646690722259,0.131748,37967.0,37965.0,0.30992121]
[1646690722460,0.131748,37967.0,37964.0,0.05016781]
[1646690722461,0.19761293,37967.0,37964.0,0.05016781]
[1646690722663,0.19761293,37967.0,37965.0,0.05]
[1646690722859,0.06586493,37967.0,37965.0,0.05]
[1646690723059,0.06586493,37967.0,37964.0,0.00016781]
[1646690723460,0.06586493,37967.0,37962.0,0.42324141]
[1646690723659,0.06586493,37967.0,37964.0,0.00016151]
[1646690724259,0.06586493,37967.0,37964.0,0.26016151]
[1646690724462,0.13173193,37967.0,37964.0,0.26016151]
[1646690724701,0.13173193,37967.0,37964.0,0.26014352]
[1646690725701,0.13173193,37967.0,37964.0,0.26]
[1646690725901,0.13173193,37967.0,37964.0,0.26014352]
[1646690726301,0.13173193,37967.0,37964.0,0.31014352]
[1646690726703,0.34040725,37967.0,37964.0,0.31014352]
[1646690726902,0.40628525,37967.0,37964.0,0.31]
[1646690727305,0.40628525,37967.0,37964.0,0.31013938]
[1646690727506,0.40628525,37967.0,37966.0,0.26770984]
[1646690727705,0.34041825,37967.0,37966.0,0.26770984]
[1646690728307,0.08685893,37970.0,37966.0,0.26770984]
[1646690729338,0.29045876,37970.0,37968.0,0.21416106]
[1646690730338,0.20359983,37970.0,37969.0,0.21416106]
[1646690730541,0.19760931,37971.0,37969.0,0.21416106]
[1646690731539,0.51773743,37971.0,37969.0,0.21416106]
[1646690732493,0.19760931,37971.0,37969.0,0.21416106]
[1646690732694,0.13174251,37971.0,37969.0,0.21416106]
[1646690732996,0.065873,37971.0,37970.0,0.21416106]
[1646690733199,0.065873,37971.0,37969.0,0.26770984]
[1646690733393,0.66415,37982.0,37969.0,0.26770984]
[1646690733394,0.25148175,37979.0,37969.0,0.26770984]
[1646690733597,0.18562375,37979.0,37972.0,0.21412483]
[1646690734392,0.18562375,37979.0,37973.0,0.21412483]
[1646690734592,0.131711,37977.0,37973.0,0.21412483]
[1646690734795,0.131711,37977.0,37974.0,0.21412483]
[1646690736444,0.131711,37977.0,37975.0,0.21412483]
[1646690736642,0.065852,37979.0,37973.0,0.39045622]
[1646690736643,0.065852,37979.0,37976.0,0.21412483]
[1646690736843,0.065852,37979.0,37977.0,0.21412483]
[1646690737742,0.065852,37979.0,37975.0,0.26770984]
[1646690737743,0.065852,37979.0,37978.0,0.21412483]
[1646690740592,0.062852,37979.0,37978.0,0.21412483]
[1646690742793,0.062852,37979.0,37978.0,0.47412483]
[1646690744952,0.062852,37979.0,37978.0,0.26]
[1646690745453,0.2582259,37979.0,37978.0,0.26]
[1646690746263,0.4609259,37979.0,37978.0,0.26]
[1646690746455,0.4609259,37979.0,37978.0,0.1549]
[1646690746653,1.62652,37978.0,37971.0,0.21427708]
[1646690746954,0.065879,37976.0,37971.0,0.00015225]
[1646690747209,0.44273446,37977.0,37963.0,0.37324141]
[1646690747210,0.06471336,37972.0,37969.0,0.21412483]
[1646690747408,0.06471336,37972.0,37967.0,0.21412483]
[1646690747409,0.11741336,37972.0,37967.0,0.21412483]
[1646690747608,1.6,37971.0,37967.0,0.21412483]
[1646690747809,0.118578,37970.0,37967.0,0.21412483]
[1646690748010,0.06587884,37969.0,37967.0,0.21412483]
[1646690748210,0.17501645,37968.0,37967.0,0.21412483]
[1646690748410,0.34126274,37969.0,37968.0,0.10821566]
[1646690749111,0.34126274,37969.0,37968.0,0.10321566]
[1646690749512,0.16587884,37969.0,37968.0,0.10321566]
[1646690749716,0.1,37969.0,37968.0,0.10321566]
[1646690750113,0.1527,37970.0,37968.0,0.10321566]
[1646690752752,0.1527,37970.0,37968.0,0.36321566]
[1646690752953,0.15216002,37970.0,37968.0,0.36321566]
[1646690753754,0.1,37970.0,37968.0,0.36321566]
[1646690754059,0.1,37970.0,37968.0,0.36734049]
[1646690754254,0.1,37970.0,37968.0,0.15321566]
[1646690754455,0.06587041,37971.0,37968.0,0.36734049]
[1646690754700,0.18445768,37975.0,37968.0,0.36734049]
[1646690754701,0.06586625,37974.0,37969.0,0.21412483]
[1646690755094,0.06586625,37974.0,37970.0,0.21412483]
[1646690755294,0.06586625,37974.0,37970.0,0.26412483]
[1646690756294,0.2259,37977.0,37970.0,0.26412483]
[1646690756497,0.00016765,37979.0,37974.0,0.15]
[1646690756699,0.00016765,37979.0,37975.0,0.21412483]
[1646690756897,0.00016765,37979.0,37978.0,0.21412483]
[1646690757098,0.237,37987.0,37978.0,0.21412483]
[1646690757099,0.41681206,37987.0,37978.0,0.21412483]
[1646690757295,0.17981206,37987.0,37978.0,0.21412483]
[1646690757497,0.31782238,37989.0,37978.0,0.21412483]
[1646690757696,0.0001621,37979.0,37978.0,0.21412483]
[1646690758295,0.33097238,37989.0,37978.0,0.21412483]
[1646690758544,0.0001621,37980.0,37979.0,0.38896424]
[1646690758745,0.0001621,37980.0,37979.0,0.63896424]
[1646690758945,0.0001621,37980.0,37979.0,0.86818424]
[1646690759145,0.0006483,37986.0,37981.0,0.02652]
[1646690759352,0.0006483,37986.0,37985.0,0.32652]
[1646690759546,0.0011,38000.0,37985.0,1.08923797]
[1646690759749,0.0011,38000.0,37998.0,0.15]
[1646690759953,0.0011,38000.0,37999.0,0.38896424]
[1646690760151,0.0011,38000.0,37999.0,0.05]
[1646690760346,0.0011,38000.0,37999.0,0.71548424]
[1646690760544,0.0011,38000.0,37999.0,0.56548424]
[1646690760747,0.0011,38000.0,37999.0,0.27585686]
[1646690760947,0.0011,38000.0,37999.0,0.27569686]
[1646690761150,0.00104,38000.0,37999.0,0.27569686]
[1646690761346,0.00081,38000.0,37999.0,0.33925686]
[1646690761548,0.00081,38000.0,37999.0,0.7282211]
[1646690761745,0.00081,38000.0,37999.0,0.55318019]
[1646690761951,0.000754,38005.0,38000.0,0.9]
[1646690762205,0.000754,38005.0,38003.0,0.15]
[1646690762603,0.000754,38005.0,38003.0,0.2]
[1646690762803,0.000754,38005.0,38004.0,0.1998]
[1646690763206,0.000754,38005.0,38004.0,0.58876424]
[1646690763408,0.0022,38013.0,38004.0,0.58876424]
[1646690763409,0.0022,38017.0,38013.0,0.01484664]
[1646690763608,0.0022,38017.0,38013.0,0.10307664]
[1646690763609,0.0033,38016.0,38013.0,0.10307664]
[1646690765407,0.287053,38020.0,38013.0,0.10307664]
[1646690765408,0.00153907,38023.0,38014.0,1.6]
[1646690765612,0.26812324,38025.0,38014.0,1.6]
[1646690765613,0.0022,38025.0,38022.0,0.3]
[1646690765807,0.0011,38026.0,38024.0,0.72652]
[1646690766061,0.0011,38026.0,38025.0,0.66818424]
[1646690766256,0.0022,38031.0,38025.0,0.76818424]
[1646690766462,0.0022,38036.0,38031.0,0.02652]
[1646690766657,0.0022,38036.0,38032.0,0.22922]
[1646690766855,0.0022,38036.0,38032.0,0.3027]